bitfinex/quotes_SOLUSD_20230703
["timestamp","ask_amount","ask_price","bid_price","bid_amount"]
[1688408298101,56.663,19.219,19.205,227.22609922]
[1688408298399,22.012,19.217,19.206,55.0]
[1688408298602,22.012,19.217,19.209,78.711]
[1688408299415,22.009,19.219,19.209,78.711]
[1688408305826,22.009,19.219,19.209,22.02]
[1688408308616,125.396,19.219,19.209,22.02]
[1688408311617,125.396,19.219,19.205,101.73909922]
[1688408311804,125.396,19.219,19.207,22.022]
[1688408313128,125.396,19.219,19.208,55.0]
[1688408313322,125.396,19.219,19.206,56.7]
[1688408315326,125.396,19.219,19.208,22.021]
[1688408331532,125.396,19.219,19.209,55.0]
[1688408331937,125.396,19.219,19.208,55.0]
[1688408333235,22.009,19.219,19.208,77.021]
[1688408334323,22.009,19.219,19.212,22.016]
[1688408335929,22.009,19.219,19.212,78.699]
[1688408338638,22.009,19.22,19.212,78.699]
[1688408340832,22.008,19.221,19.212,78.699]
[1688408342628,339.63846843,19.246,19.213,55.0]
[1688408342934,88.931,19.23,19.218,78.675]
[1688408343941,22.001,19.227,19.218,78.675]
[1688408345242,78.64,19.227,19.218,22.01]
[1688408346521,181.984,19.227,19.216,22.012]
[1688408346725,181.984,19.227,19.213,55.0]
[1688408346726,181.984,19.227,19.217,22.011]
[1688408350041,181.984,19.227,19.216,22.012]
[1688408350232,55.0,19.226,19.213,56.679]
[1688408350432,78.656,19.223,19.216,22.012]
[1688408352551,22.005,19.223,19.216,22.012]
[1688408363764,22.005,19.223,19.21,32.3]
[1688408363948,32.23,19.22,19.212,22.016]
[1688408364262,22.011,19.218,19.212,22.016]
[1688408378969,56.648,19.224,19.212,22.016]
[1688408379373,22.007,19.221,19.212,125.44]
[1688408380477,22.006,19.222,19.212,125.44]
[1688408382482,22.004,19.224,19.213,55.0]
[1688408382688,22.004,19.224,19.216,78.682]
[1688408384384,22.003,19.225,19.216,182.085]
[1688408384681,22.002,19.225,19.22,22.007]
[1688408388479,22.002,19.225,19.218,22.01]
[1688408414901,22.002,19.225,19.21,32.3]
[1688408415091,22.002,19.225,19.213,22.016]
[1688408423508,55.0,19.224,19.213,22.016]
[1688408423714,78.664,19.221,19.213,22.016]
[1688408429909,22.007,19.221,19.213,22.016]
[1688408431905,22.006,19.223,19.213,125.435]
[1688408432206,22.006,19.222,19.216,22.012]
[1688408444823,22.006,19.222,19.211,20.0]
[1688408446121,22.006,19.222,19.214,22.014]
[1688408458303,22.006,19.222,19.214,78.691]
[1688408462920,22.006,19.222,19.217,22.011]
[1688408466606,56.643,19.226,19.217,22.011]
[1688408467727,22.006,19.222,19.217,22.011]
[1688408467907,56.639,19.227,19.217,22.011]
[1688408468110,22.004,19.223,19.217,22.011]
[1688408468507,22.004,19.224,19.217,22.011]
[1688408506637,125.364,19.224,19.215,22.013]
[1688408506941,125.364,19.224,19.213,22.015]
[1688408531872,22.004,19.224,19.213,22.015]
[1688408546996,32.3,19.23,19.213,22.015]
[1688408547200,54.297,19.23,19.214,55.0]
[1688408547399,32.3,19.23,19.218,182.06]
[1688408547587,54.297,19.23,19.219,55.0]
[1688408547904,54.297,19.23,19.222,22.005]
[1688408548293,21.997,19.23,19.222,22.005]
[1688408549980,21.997,19.23,19.221,22.006]
[1688408554608,21.997,19.23,19.22,54.307]
[1688408564722,21.997,19.23,19.22,22.007]
[1688408569024,21.997,19.23,19.219,22.008]
[1688408573304,21.997,19.23,19.22,87.3]
[1688408573510,21.997,19.23,19.222,22.005]
[1688408582517,21.997,19.23,19.22,32.3]
[1688408582708,21.997,19.23,19.218,22.009]
[1688408582912,54.227,19.23,19.215,95.3633]
[1688408583132,182.006,19.225,19.214,22.014]
[1688408583826,182.006,19.225,19.21,32.3]
[1688408584418,182.006,19.225,19.21,22.019]
[1688408584622,55.0,19.224,19.21,22.019]
[1688408584924,182.05,19.22,19.21,22.019]
[1688408585808,182.05,19.22,19.206,96.9169]
[1688408586036,214.35,19.22,19.21,22.019]
[1688408589008,54.308,19.22,19.206,96.9169]
[1688408589229,214.35,19.22,19.21,22.019]
[1688408590229,214.35,19.22,19.207,55.0]
[1688408590418,214.35,19.22,19.209,22.02]
[1688408590616,214.35,19.22,19.206,96.9169]
[1688408590828,214.35,19.22,19.209,22.02]
[1688408591333,214.35,19.22,19.208,22.021]
[1688408591536,55.0,19.219,19.208,22.021]
[1688408591830,78.685,19.216,19.208,22.021]
[1688408592533,55.0,19.219,19.206,96.9169]
[1688408592724,78.685,19.216,19.208,22.021]
[1688408594627,32.3,19.22,19.206,96.9169]
[1688408594829,78.685,19.216,19.208,22.021]
[1688408599343,78.685,19.216,19.206,96.9169]
[1688408599529,78.685,19.216,19.2,89.018]
[1688408599530,55.0,19.215,19.2,89.018]
[1688408599841,78.706,19.211,19.203,22.027]
[1688408607446,182.136,19.211,19.2,32.3]
[1688408609441,32.3,19.21,19.198,56.723]
[1688408609660,78.721,19.207,19.2,22.03]
[1688408610545,22.023,19.207,19.2,22.03]
[1688408613846,22.023,19.207,19.199,22.031]
[1688408614633,125.474,19.207,19.198,22.032]
[1688408614851,125.474,19.207,19.199,55.0]
[1688408615647,125.474,19.207,19.198,22.032]
[1688408616041,125.474,19.207,19.199,55.0]
[1688408616745,125.474,19.207,19.198,22.032]
[1688408620556,125.474,19.207,19.199,55.0]
[1688408625364,125.474,19.207,19.198,77.033]
[1688408625954,125.474,19.207,19.198,55.0]
[1688408626147,125.474,19.207,19.198,77.033]
[1688408626445,125.474,19.207,19.198,55.0]
[1688408628045,125.474,19.207,19.197,77.034]
[1688408629663,125.474,19.207,19.197,55.0]
[1688408631767,125.474,19.207,19.197,77.034]
[1688408635171,125.474,19.207,19.197,55.0]
[1688408635353,125.474,19.207,19.197,77.034]
[1688408635554,125.474,19.207,19.197,55.0]
[1688408635866,125.474,19.207,19.197,77.034]
[1688408636064,125.474,19.207,19.197,55.0]
[1688408636667,125.474,19.207,19.197,77.034]
[1688408638773,125.474,19.207,19.197,55.0]
[1688408641660,125.474,19.207,19.197,77.034]
[1688408643272,125.474,19.207,19.197,55.0]
[1688408643477,125.474,19.207,19.197,77.034]
[1688408681191,125.474,19.207,19.197,55.0]
[1688408681500,125.474,19.207,19.197,77.034]
[1688408682104,125.474,19.207,19.197,55.0]
[1688408682405,125.474,19.207,19.197,77.034]
[1688408682701,125.474,19.207,19.197,55.0]
[1688408683101,125.474,19.207,19.197,77.034]
[1688408685703,22.023,19.207,19.197,77.034]
[1688408685903,22.023,19.207,19.2,32.3]
[1688408686206,22.023,19.207,19.202,22.028]
[1688408686391,22.023,19.207,19.203,55.0]
[1688408686592,22.023,19.207,19.201,77.029]
[1688408687410,22.022,19.208,19.202,10.83719922]
[1688408687608,22.021,19.209,19.204,22.026]
[1688408687814,22.019,19.211,19.204,22.026]
[1688408688002,22.019,19.211,19.205,55.0]
[1688408688202,22.019,19.211,19.206,22.024]
[1688408688501,22.018,19.212,19.207,55.0]
[1688408688702,22.018,19.212,19.208,22.021]
[1688408690415,56.676,19.215,19.208,22.021]
[1688408691116,22.016,19.213,19.208,22.021]
[1688408692516,56.662,19.219,19.209,55.0]
[1688408692815,56.662,19.219,19.212,22.017]
[1688408693018,22.012,19.216,19.212,22.017]
[1688408714241,22.012,19.216,19.209,55.0]
[1688408714427,22.012,19.216,19.211,22.017]
[1688408715141,22.012,19.216,19.2,57.9432686]
[1688408715440,22.012,19.216,19.208,22.021]
[1688408715626,22.012,19.216,19.207,22.022]
[1688408715822,22.012,19.216,19.203,97.9725]
[1688408716526,22.012,19.216,19.202,56.711]
[1688408717246,22.012,19.216,19.205,22.024]
[1688408718544,22.022,19.208,19.198,56.723]
[1688408718726,22.022,19.208,19.201,22.028]
[1688408723860,22.022,19.208,19.2,22.03]
[1688408728347,22.022,19.208,19.2,22.031]
[1688408728547,22.022,19.208,19.199,22.031]
[1688408732153,22.022,19.208,19.198,22.032]
[1688408734459,22.022,19.208,19.198,22.033]
[1688408734659,22.022,19.208,19.199,22.032]
[1688408735657,22.022,19.208,19.198,22.032]
[1688408746970,22.022,19.208,19.196,22.035]
[1688408747268,55.0,19.207,19.193,56.739]
[1688408747471,182.211,19.203,19.193,22.038]
[1688408747664,20.0,19.202,19.192,22.039]
[1688408747871,22.032,19.199,19.192,22.039]
[1688408748171,22.032,19.199,19.188,98.5545]
[1688408748360,125.526,19.199,19.188,98.5545]
[1688408749056,125.526,19.199,19.188,120.5975]
[1688408749472,125.526,19.199,19.188,22.043]
[1688408751365,125.526,19.199,19.187,22.045]
[1688408752457,55.0,19.198,19.185,22.047]
[1688408752678,182.295,19.195,19.184,22.049]
[1688408753359,20.0,19.194,19.18,32.3]
[1688408753559,182.337,19.19,19.181,22.052]
[1688408754074,214.567,19.19,19.177,97.8004]
[1688408754263,78.809,19.186,19.177,119.8564]
[1688408754458,78.809,19.186,19.177,97.8004]
[1688408754975,78.809,19.186,19.177,119.8574]
[1688408755175,78.809,19.186,19.177,22.057]
[1688408760880,78.809,19.186,19.176,22.057]
[1688408761180,78.809,19.186,19.172,56.801]
[1688408761386,78.809,19.186,19.175,22.059]
[1688408761586,55.0,19.185,19.174,22.06]
[1688408761789,78.824,19.182,19.174,22.06]
[1688408762385,78.824,19.182,19.173,22.061]
[1688408763784,22.052,19.182,19.173,22.061]
[1688408765486,55.0,19.181,19.172,22.062]
[1688408765783,78.838,19.179,19.17,22.065]
[1688408766081,78.838,19.179,19.169,22.065]
[1688408766273,78.838,19.179,19.168,22.067]
[1688408767481,55.0,19.178,19.165,79.7663]
[1688408767780,182.485,19.175,19.165,79.7663]
[1688408767971,182.485,19.175,19.164,22.071]
[1688408769464,78.868,19.171,19.164,22.071]
[1688408769665,78.868,19.171,19.163,22.072]
[1688408770270,182.514,19.171,19.16,32.3]
[1688408770471,78.886,19.167,19.159,22.077]
[1688408770872,78.886,19.167,19.156,56.848]
[1688408771091,78.886,19.167,19.158,22.078]
[1688408771388,78.886,19.167,19.154,103.735]
[1688408771389,182.553,19.167,19.157,22.079]
[1688408771890,182.553,19.167,19.152,153.4049]
[1688408772099,55.0,19.166,19.154,22.083]
[1688408772274,182.596,19.163,19.154,22.084]
[1688408772594,182.596,19.163,19.152,96.5449]
[1688408772776,182.596,19.163,19.153,22.084]
[1688408773289,182.596,19.163,19.152,22.085]
[1688408773475,182.596,19.163,19.15,54.387]
[1688408773476,75.0,19.162,19.15,54.387]
[1688408773677,182.632,19.159,19.15,54.387]
[1688408774174,182.632,19.159,19.15,32.3]
[1688408774374,182.632,19.159,19.144,103.792]
[1688408775589,182.632,19.159,19.145,55.0]
[1688408775887,182.632,19.159,19.148,22.09]
[1688408776479,182.632,19.159,19.147,22.091]
[1688408776691,182.632,19.159,19.143,56.886]
[1688408778092,182.632,19.159,19.146,22.093]
[1688408778405,182.632,19.159,19.142,22.097]
[1688408778406,120.97030024,19.158,19.142,22.097]
[1688408778693,182.684,19.154,19.14,22.099]
[1688408778896,55.0,19.153,19.14,22.099]
[1688408779195,182.722,19.15,19.14,22.099]
[1688408779878,22.089,19.15,19.14,22.099]
[1688408780196,22.089,19.15,19.14,158.383]
[1688408780977,22.089,19.15,19.143,22.096]
[1688408781193,22.089,19.15,19.142,22.097]
[1688408781392,22.089,19.15,19.14,56.895]
[1688408781602,22.089,19.15,19.142,22.096]
[1688408781977,22.089,19.15,19.14,22.099]
[1688408782497,22.089,19.15,19.138,22.101]
[1688408782896,22.089,19.15,19.137,22.103]
[1688408783100,22.089,19.15,19.134,56.913]
[1688408783101,22.089,19.15,19.138,22.102]
[1688408784387,22.089,19.15,19.139,55.0]
[1688408784696,22.089,19.15,19.141,22.098]
[1688408785079,22.089,19.15,19.14,22.099]
[1688408786995,32.21,19.17,19.141,55.0]
[1688408787187,32.21,19.17,19.147,22.091]
[1688408787499,9.83518885,19.164,19.147,22.091]
[1688408788096,182.606,19.162,19.147,22.091]
[1688408788304,55.0,19.161,19.147,22.091]
[1688408788504,78.926,19.157,19.147,22.091]
[1688408789384,22.08,19.157,19.148,55.0]
[1688408789588,22.08,19.157,19.15,22.087]
[1688408791680,22.08,19.157,19.149,22.088]
[1688408795902,22.08,19.157,19.146,56.877]
[1688408797106,22.08,19.157,19.149,22.089]
[1688408803611,22.08,19.157,19.144,92.3133]
[1688408803796,22.08,19.157,19.145,55.0]
[1688408803991,125.801,19.157,19.148,22.09]
[1688408804997,22.08,19.157,19.149,55.0]
[1688408805203,56.845,19.164,19.151,22.087]
[1688408805390,56.817,19.167,19.152,55.0]
[1688408805595,22.073,19.164,19.156,22.081]
[1688408805816,56.816,19.167,19.156,22.081]
[1688408806103,22.072,19.165,19.156,22.081]
[1688408808007,22.072,19.165,19.156,125.808]
[1688408808302,22.068,19.168,19.156,125.808]
[1688408808510,22.069,19.167,19.157,55.0]
[1688408808815,56.809,19.17,19.16,22.077]
[1688408809500,56.809,19.17,19.161,55.0]
[1688408809708,22.069,19.167,19.163,22.072]
[1688408811215,22.068,19.168,19.163,22.072]
[1688408825440,22.068,19.168,19.161,22.075]
[1688408872254,22.068,19.168,19.157,56.845]
[1688408872773,22.068,19.168,19.16,22.076]
[1688408873474,22.068,19.168,19.153,103.743]
[1688408873774,182.595,19.163,19.15,32.43]
[1688408873955,22.081,19.157,19.148,56.871]
[1688408875161,22.081,19.157,19.151,22.086]
[1688408885865,22.081,19.157,19.141,25.68051565]
[1688408886071,78.927,19.157,19.15,22.087]
[1688408887286,78.927,19.157,19.151,22.087]
[1688408887787,32.41,19.16,19.151,22.087]
[1688408887975,20.0,19.162,19.151,22.087]
[1688408887976,22.078,19.159,19.151,22.087]
[1688408888177,56.826,19.164,19.151,22.087]
[1688408888376,136.066,19.17,19.157,78.925]
[1688408888578,22.071,19.166,19.157,78.925]
[1688408893592,22.071,19.166,19.157,22.08]
[1688408896571,22.074,19.163,19.157,22.08]
[1688408896792,22.074,19.163,19.156,22.081]
[1688408896980,22.077,19.161,19.156,22.081]
[1688408897179,22.077,19.161,19.155,22.081]
[1688408897391,22.077,19.161,19.154,22.083]
[1688408897593,22.077,19.161,19.148,202.6562]
[1688408899198,22.077,19.161,19.154,22.083]
[1688408899784,22.075,19.162,19.154,22.083]
[1688408899984,22.073,19.164,19.154,22.083]
[1688408904100,32.41,19.16,19.153,22.084]
[1688408904310,22.079,19.158,19.152,22.085]
[1688408904493,32.41,19.16,19.152,22.085]
[1688408904694,22.079,19.159,19.152,22.085]
[1688408908301,22.079,19.159,19.149,56.868]
[1688408908502,22.079,19.159,19.151,22.086]
[1688408909701,22.079,19.159,19.15,22.087]
[1688408910588,125.79,19.159,19.149,22.089]
[1688408911499,55.0,19.158,19.148,98.8912]
[1688408911699,22.083,19.155,19.149,22.089]
[1688408911895,22.083,19.155,19.143,103.792]
[1688408911896,22.083,19.155,19.147,22.092]
[1688408913203,125.815,19.155,19.144,90.4046]
[1688408913402,55.0,19.154,19.144,112.4986]
[1688408913604,22.087,19.151,19.144,112.4986]
[1688408914909,22.087,19.151,19.143,22.096]
[1688408915996,22.087,19.151,19.142,22.097]
[1688408915997,22.091,19.148,19.142,22.097]
[1688408916817,22.091,19.148,19.141,22.098]
[1688408923918,22.091,19.148,19.14,54.529]
[1688408925429,22.091,19.148,19.14,32.43]
[1688408925926,22.091,19.148,19.14,54.529]
[1688408926427,22.091,19.148,19.14,41.48166427]
[1688408932629,125.861,19.148,19.14,19.38266427]
[1688408933025,22.091,19.148,19.141,22.098]
[1688408939826,22.091,19.148,19.14,19.38266427]
[1688408941343,22.091,19.148,19.14,41.48266427]
[1688408949650,22.091,19.148,19.14,22.1]
[1688408999872,22.091,19.148,19.14,54.53]
[1688409000091,22.09,19.149,19.141,55.0]
[1688409000384,22.09,19.149,19.143,22.096]
[1688409001280,35.3858558,19.158,19.143,22.096]
[1688409001488,22.087,19.152,19.143,22.096]
[1688409002478,22.087,19.152,19.144,55.0]
[1688409002772,22.087,19.152,19.146,22.092]
[1688409003475,35.3858558,19.158,19.147,55.0]
[1688409003476,103.719,19.158,19.147,55.0]
[1688409003660,56.837,19.16,19.151,22.086]
[1688409003875,22.081,19.157,19.151,22.086]
[1688409004774,22.079,19.159,19.155,22.082]
[1688409005369,22.079,19.159,19.151,22.086]
[1688409005687,22.079,19.159,19.148,22.09]
[1688409005989,22.079,19.159,19.146,94.8223]
[1688409006167,31.77942899,19.159,19.146,94.8223]
[1688409006470,182.67,19.155,19.146,94.8223]
[1688409006671,182.67,19.155,19.142,56.888]
[1688409007899,182.67,19.155,19.146,22.093]
[1688409009686,78.936,19.155,19.146,22.093]
[1688409010070,22.083,19.155,19.146,125.874]
[1688409012068,32.43,19.16,19.141,94.289]
[1688409012264,55.0,19.159,19.142,55.0]
[1688409012471,32.43,19.16,19.142,65.83719922]
[1688409013084,59.75004645,19.165,19.142,65.83719922]
[1688409013291,20.0,19.164,19.142,65.83719922]
[1688409013467,29.70042899,19.164,19.142,65.83719922]
[1688409013796,89.45047599,19.164,19.142,65.83719922]
[1688409014484,55.0,19.163,19.142,65.83719922]
[1688409014691,20.0,19.162,19.15,32.43]
[1688409014993,89.45047599,19.164,19.15,32.43]
[1688409016070,55.0,19.163,19.15,32.43]
[1688409016274,20.0,19.162,19.15,32.43]
[1688409017190,1.0,38.4,19.151,55.0]
[1688409017191,52.03,19.179,19.151,55.0]
[1688409017373,54.10457256,19.178,19.151,55.0]
[1688409017692,32.43,19.17,19.152,99.8981]
[1688409017870,32.43,19.17,19.153,55.0]
[1688409018071,32.43,19.17,19.153,65.83719922]
[1688409018474,55.0,19.169,19.153,65.83719922]
[1688409018787,32.43,19.17,19.153,65.83719922]
[1688409018977,64.86,19.17,19.153,65.83719922]
[1688409020187,55.0,19.169,19.153,65.83719922]
[1688409023797,64.86,19.17,19.153,65.83719922]
[1688409023992,32.43,19.17,19.153,65.83719922]
[1688409024176,9.70042899,19.173,19.153,65.83719922]
[1688409024376,75.0,19.172,19.153,65.83719922]
[1688409024790,84.70042899,19.172,19.153,65.83719922]
[1688409025095,9.70042899,19.171,19.153,65.83719922]
[1688409025300,55.0,19.17,19.153,65.83719922]
[1688409031202,79.36846843,19.186,19.16,32.36]
[1688409031375,9.80846687,19.175,19.161,55.0]
[1688409031583,20.0,19.174,19.161,55.0]
[1688409034700,20.0,19.174,19.161,146.7572]
[1688409035895,20.0,19.176,19.161,146.7572]
[1688409036100,55.0,19.175,19.161,146.7572]
[1688409036303,20.0,19.174,19.161,146.7572]
[1688409036905,65.837199,19.178,19.161,146.7572]
[1688409037107,32.41,19.19,19.161,157.59439922]
[1688409037406,9.88049183,19.188,19.17,32.36]
[1688409037588,9.88049183,19.188,19.171,55.0]
[1688409037905,42.24049183,19.188,19.171,55.0]
[1688409038287,42.24049183,19.188,19.171,153.4447]
[1688409038492,32.36,19.188,19.171,153.4447]
[1688409038699,20.0,19.187,19.171,153.4447]
[1688409039288,32.36,19.188,19.171,153.4447]
[1688409039510,32.41,19.19,19.171,153.4447]
[1688409039690,9.88049183,19.193,19.172,10.83719922]
[1688409039889,20.0,19.192,19.173,55.0]
[1688409040398,20.0,19.192,19.173,10.83719922]
[1688409040601,9.88049183,19.195,19.174,65.83719922]
[1688409040803,20.0,19.194,19.174,65.83719922]
[1688409041204,29.88049183,19.194,19.174,65.83719922]
[1688409041509,50.75125383,19.194,19.175,95.4426]
[1688409041708,50.75125383,19.194,19.176,55.0]
[1688409042109,64.88049183,19.193,19.176,55.0]
[1688409042297,20.0,19.192,19.175,95.4426]
[1688409042499,55.0,19.191,19.171,10.83719922]
[1688409042798,55.0,19.191,19.172,55.0]
[1688409043203,55.0,19.191,19.172,65.83719922]
[1688409046303,20.0,19.192,19.173,10.83719922]
[1688409046499,20.0,19.193,19.174,44.16280078]
[1688409046699,9.88260414,19.192,19.174,44.16280078]
[1688409046907,32.37,19.19,19.174,44.16280078]
[1688409047218,32.37,19.19,19.171,95.4426]
[1688409047722,9.88260414,19.189,19.171,95.4426]
[1688409048017,55.0,19.188,19.171,95.4426]
[1688409048400,64.88260414,19.188,19.171,95.4426]
[1688409048898,64.88260414,19.188,19.17,10.83719922]
[1688409050814,55.0,19.188,19.17,10.83719922]
[1688409051112,32.37,19.19,19.171,55.0]
[1688409051312,9.88260414,19.192,19.171,55.0]
[1688409051516,9.88260414,19.192,19.172,104.88539922]
[1688409051812,9.88260414,19.192,19.173,55.0]
[1688409052203,9.88260414,19.192,19.174,10.83719922]
[1688409052405,9.88260414,19.192,19.175,55.0]
[1688409053511,55.0,19.191,19.175,55.0]
[1688409056214,22.047,19.187,19.179,22.054]
[1688409057414,22.047,19.187,19.175,56.791]
[1688409057615,55.0,19.186,19.173,56.797]
[1688409057918,22.051,19.183,19.176,22.057]
[1688409059520,55.0,19.182,19.172,94.0482]
[1688409059712,22.058,19.177,19.173,22.061]
[1688409060314,22.058,19.177,19.171,22.064]
[1688409060722,22.058,19.177,19.166,56.817]
[1688409062205,22.058,19.177,19.169,22.066]
[1688409068832,125.671,19.177,19.167,22.068]
[1688409069622,22.061,19.174,19.167,22.068]
[1688409073507,55.0,19.173,19.165,22.07]
[1688409073818,22.065,19.171,19.163,91.0977]
[1688409074125,22.065,19.171,19.164,22.071]
[1688409074319,22.065,19.171,19.163,91.0977]
[1688409074528,22.065,19.171,19.163,113.1697]
[1688409075723,125.711,19.171,19.161,22.075]
[1688409076025,87.37,19.17,19.16,22.077]
[1688409076223,78.885,19.167,19.159,22.077]
[1688409076409,78.885,19.167,19.16,22.076]
[1688409076721,182.552,19.167,19.155,22.081]
[1688409076921,78.903,19.163,19.155,22.081]
[1688409078919,22.074,19.163,19.155,22.081]
[1688409081036,55.0,19.162,19.155,22.081]
[1688409081213,22.077,19.16,19.155,22.081]
[1688409084032,22.077,19.16,19.152,94.2314]
[1688409084930,22.077,19.16,19.15,56.866]
[1688409085128,22.077,19.16,19.152,22.085]
[1688409086724,22.08,19.157,19.151,22.086]
[1688409086912,22.08,19.157,19.148,151.5166]
[1688409087113,22.08,19.157,19.15,22.087]
[1688409093133,160.536,19.161,19.15,78.953]
[1688409093134,22.08,19.158,19.15,78.953]
[1688409093440,22.079,19.158,19.15,111.163]
[1688409094627,22.079,19.158,19.15,22.087]
[1688409094826,22.079,19.158,19.148,94.6456]
[1688409096233,22.079,19.158,19.149,22.089]
[1688409100150,56.834,19.161,19.15,87.37]
[1688409100443,22.079,19.158,19.153,22.084]
[1688409101038,56.834,19.161,19.153,22.084]
[1688409103145,22.078,19.159,19.153,22.084]
[1688409103444,22.076,19.161,19.153,78.941]
[1688409103644,56.827,19.164,19.153,78.941]
[1688409103841,20.0,19.163,19.153,78.941]
[1688409104238,56.827,19.164,19.153,78.941]
[1688409104543,22.072,19.165,19.157,22.08]
[1688409123564,22.072,19.165,19.156,22.081]
[1688409124957,55.0,19.164,19.155,22.082]
[1688409125155,78.907,19.162,19.155,22.082]
[1688409125356,78.907,19.162,19.154,22.083]
[1688409125860,182.601,19.162,19.15,32.21]
[1688409126968,182.601,19.162,19.149,56.868]
[1688409127148,182.601,19.162,19.152,22.085]
[1688409127963,55.0,19.161,19.15,22.087]
[1688409128266,182.64,19.158,19.149,22.089]
[1688409131652,78.922,19.158,19.149,22.089]
[1688409134071,103.689,19.164,19.15,87.47]
[1688409134260,22.077,19.161,19.154,22.083]
[1688409134565,22.074,19.163,19.154,22.083]
[1688409134762,22.073,19.164,19.154,22.083]
[1688409134966,22.073,19.164,19.154,125.821]
[1688409135264,22.073,19.164,19.157,78.922]
[1688409138360,22.073,19.164,19.157,22.079]
[1688409145462,55.0,19.163,19.157,22.079]
[1688409145678,22.075,19.162,19.157,22.079]
[1688409151084,22.075,19.162,19.156,22.08]
[1688409160872,78.906,19.162,19.153,56.857]
[1688409161088,22.075,19.162,19.156,22.081]
[1688409163587,22.075,19.162,19.154,22.083]
[1688409163791,32.25,19.16,19.146,203.335]
[1688409164093,22.082,19.156,19.15,22.088]
[1688409164596,22.082,19.156,19.149,22.088]
[1688409166294,22.082,19.156,19.146,156.436]
[1688409166597,22.082,19.156,19.146,143.3879833]
[1688409167095,22.082,19.156,19.148,22.09]
[1688409172399,125.809,19.156,19.146,86.5109833]
[1688409172607,125.809,19.156,19.146,108.6029833]
[1688409173403,125.809,19.156,19.146,22.092]
[1688409189101,125.809,19.156,19.141,67.72819922]
[1688409189311,125.809,19.156,19.146,22.092]